[Event "Chhattisgarh Masters GM 2022"]
[Site "Chhattisgarh"]
[Date "2022.09.27"]
[Round "9.1"]
[White "Neelash Saha"]
[Black "Mayank Chakraborty"]
[Result "1-0"]
[ECO "D30"]
[WhiteElo "2454"]
[BlackElo "2044"]
[Annotator "TA"]
[PlyCount "69"]
[EventDate "2022.09.19"]
[EventCountry "IND"]
[SourceTitle "playchess.com"]
[Source "ChessBase"]
[SourceQuality "1"]
[TimeControl "5400+30"]

{[%evp 11,69,-4,0,0,0,0,0,6,10,0,3,0,0,0,0,0,0,0,25,18,24,31,35,31,30,27,86,54,63,55,98,90,93,105,94,95,143,129,128,109,110,99,128,113,121,119,157,144,150,134,171,177,194,124,219,214,338,316,29980,29981]} 1. d4 {[%emt 0:02:40]} Nf6 {[%emt 0:00:19]} 2. c4 {[%emt 0:00:04]} e6 {[%emt 0:00:05]} 3. Nf3 {[%emt 0:00:04]} d5 {[%emt 0:00:04]} 4. e3 {[%emt 0:00:08]} c5 {[%emt 0:01:42]} 5. dxc5 {[%emt 0:03:23]} Bxc5 {[%emt 0:00:07]} 6. a3 {[%emt 0:00:04]} a5 {[%emt 0:01:33]} 7. Nc3 {[%emt 0:01:08] D30: Queen's Gambit Declined: Systems without Nc3.} O-O {[%emt 0:00:08]} 8. cxd5 {[%emt 0:00:15]} exd5 {[%emt 0:00:14]} 9. Be2 {[%emt 0:00:33] The position is equal.} Nc6 {[%emt 0:00:12]} 10. Nb5 {[%emt 0:00:19]} Bg4 {[%emt 0:03:35]} 11. O-O {[%emt 0:03:24]} Ne4 {[%emt 0:05:07] [#]} 12. b3 $146 {[%emt 0:06:49]} ({Predecessor:} 12. Bd2 Qb6 13. Rc1 Bxf3 14. gxf3 Nxd2 15. Qxd2 Rad8 16. Qc3 Be7 17. Rfd1 Bf6 18. Qc5 Qxc5 19. Rxc5 Bxb2 20. Rcxd5 Rxd5 21. Rxd5 {1-0 (56) Yang,K (2481)-Ljukin,S (2362) Chess.com INT 2021}) 12... Qf6 {[%emt 0:02:00]} 13. Ra2 {[%emt 0:00:41]} Rad8 {[%emt 0:01:07]} 14. Rc2 {[%emt 0:01:27]} Qh6 {[%emt 0:12:57]} 15. Nfd4 {[%emt 0:03:07]} Bxe2 {[%emt 0:00:42]} 16. Nxe2 {[%emt 1:14:24]} Rfe8 {[%emt 0:03:53]} 17. Ned4 {[%emt 0:00:00]} Bxd4 {[%emt 0:06:25]} 18. Nxd4 {[%emt 0:01:00]} Ne5 {[%emt 0:00:16]} (18... Nxd4 $11 19. Qxd4 Qg6) 19. Bb2 {[%emt 0:00:00] [#] f4 is the strong threat.} Qb6 {[%emt 0:02:59]} 20. Ba1 {[%emt 0:00:00]} Nf6 {[%emt 0:04:52]} 21. Qe2 {[%emt 0:00:00]} Nc6 {[%emt 0:01:12]} 22. Nxc6 {[%emt 0:00:00]} bxc6 {[%emt 0:00:03]} 23. Bd4 {[%emt 0:00:00]} Qb7 {[%emt 0:03:58]} (23... Qxb3 $142 24. Bxf6 (24. Rxc6 Qa4 $16) 24... gxf6) 24. Bxf6 $16 {[%emt 0:00:00]} gxf6 {[%emt 0:00:01]} 25. Qg4+ {[%emt 0:00:00]} Kh8 {[%emt 0:00:02]} 26. Qa4 {[%emt 0:00:00]} Re6 {[%emt 0:02:45]} 27. Rfc1 {[%emt 0:00:00]} Rb8 {[%emt 0:02:05]} 28. Rc3 {[%emt 0:00:00]} ({Much worse is} 28. Rxc6 $6 Rxc6 29. Qxc6 (29. Rxc6 Qxb3 30. Qxb3 Rxb3 $14) 29... Qxc6 30. Rxc6 Rxb3 $14) 28... Qb5 {[%emt 0:00:15]} 29. Qh4 {[%emt 0:00:00]} ({Wrong is} 29. Rxc6 $2 Rxc6 30. Ra1 Qxa4 31. bxa4 Rb2 $19) 29... Qb6 {[%emt 0:08:15]} 30. Rd1 {[%emt 0:00:00]} Rg8 {[%emt 0:01:47]} 31. g3 {[%emt 0:00:00]} Rg6 {[%emt 0:01:48]} 32. Qa4 {[%emt 0:00:00]} (32. Qd4 $18 Qa6 33. Rc5) 32... Rg8 {[%emt 0:07:07]} (32... Kg7 $16 {is a better defense.} 33. Qd4 Qb5) 33. Rdc1 $18 {[%emt 0:00:00][%cal Rc3c6]} Rb8 {[%emt 0:00:58]} (33... Qb5 $142 34. Qxb5 (34. Rxc6 Qxa4 35. bxa4 Rg4 $18) 34... cxb5) 34. Rxc6 {[%emt 0:00:00]} Qxb3 $2 {[%emt 0:00:07] [#]} (34... Qd8 $18 35. Rc7 Re7) 35. Rc8+ {[%emt 0:00:00] Weighted Error Value: White=0.07 (flawless) /Black=0.42} 1-0

[Event "Chhattisgarh Masters GM 2022"]
[Site "Chhattisgarh"]
[Date "2022.09.27"]
[Round "9.1"]
[White "Tahbaz, Arash"]
[Black "Pantsulaia, Levan"]
[Result "1/2-1/2"]
[ECO "C68"]
[WhiteElo "2437"]
[BlackElo "2596"]
[Annotator "TA"]
[PlyCount "27"]
[EventDate "2022.09.19"]
[EventCountry "IND"]
[SourceTitle "playchess.com"]
[Source "ChessBase"]
[SourceQuality "1"]
[TimeControl "5400+30"]

{[%evp 26,27,0,0]} 1. e4 {[%emt 0:00:07]} e5 {[%emt 0:00:13]} 2. Nf3 {[%emt 0:00:12]} Nc6 {[%emt 0:00:11]} 3. Bb5 {[%emt 0:00:10]} a6 {[%emt 0:00:24]} 4. Bxc6 {[%emt 0:00:31]} dxc6 {[%emt 0:00:09]} 5. O-O {[%emt 0:00:08]} Bg4 {[%emt 0:01:28]} 6. h3 {[%emt 0:02:06]} h5 {[%emt 0:00:58]} 7. c3 {[%emt 0:01:47]} Qd3 {[%emt 0:00:25]} 8. hxg4 {[%emt 0:00:18]} hxg4 {[%emt 0:00:07]} 9. Nxe5 {[%emt 0:00:09]} Bd6 {[%emt 0:00:08]} 10. Nxd3 {[%emt 0:00:10]} Bh2+ {[%emt 0:00:07]} 11. Kh1 {[%emt 0:00:01]} Bg3+ {[%emt 0:00:08]} 12. Kg1 {[%emt 0:00:06]} Bh2+ {[%emt 0:00:06]} 13. Kh1 {[%emt 0:00:02] [#]} Bg3+ $146 {[%emt 0:00:06]} ({Predecessor:} 13... Bf4+) 14. Kg1 {[%emt 0:00:03]} 1/2-1/2

[Event "Chhattisgarh Masters GM 2022"]
[Site "Chhattisgarh"]
[Date "2022.09.27"]
[Round "9.1"]
[White "Viani Antonio Dcunha"]
[Black "Pawar, Harshit"]
[Result "1-0"]
[ECO "B07"]
[WhiteElo "2348"]
[BlackElo "2111"]
[Annotator "TA"]
[PlyCount "57"]
[EventDate "2022.09.19"]
[EventCountry "IND"]
[SourceTitle "playchess.com"]
[Source "ChessBase"]
[SourceQuality "1"]
[TimeControl "5400+30"]

{[%evp 12,57,56,20,116,110,108,116,118,67,86,62,79,17,93,102,98,109,87,116,84,91,153,93,214,89,178,75,88,138,137,71,145,160,185,131,180,199,419,390,535,520,1022,823,824,791,29997,29998]} 1. e4 {[%emt 0:00:06]} d6 {[%emt 0:00:06]} 2. d4 {[%emt 0:00:04]} Nf6 {[%emt 0:00:05]} 3. Nc3 {[%emt 0:00:04]} g6 {[%emt 0:00:11]} 4. f3 {[%emt 0:00:40]} Bg7 {[%emt 0:00:10]} 5. Be3 {[%emt 0:00:05]} c6 {[%emt 0:01:26]} 6. Qd2 {[%emt 0:00:10]} h5 {[%emt 0:05:28]} 7. O-O-O $1 {[%emt 0:01:37] 7.0-0-0 is better than 7.h4.} d5 {[%emt 0:03:34] [#] B07: Pirc Defence: Miscellaneous Systems.} (7... b5 $11 {remains equal.}) 8. h3 $146 {[%emt 0:07:01]} ({Predecessor:} 8. Kb1 a6 9. Nge2 b5 10. e5 Ng8 11. Nf4 e6 12. h4 c5 13. dxc5 Nc6 14. Bd4 {0-1 (55) Bartakke,A (2182)-Gokhale,C (2233) Goa 2015}) 8... b5 {[%emt 0:02:18]} 9. e5 {[%emt 0:02:44]} Ng8 {[%emt 0:01:02] White is better.} 10. g3 {[%emt 0:00:48]} (10. Bd3 $16) 10... e6 {[%emt 0:05:00]} 11. g4 {[%emt 0:04:15] White is more active.} Nd7 {[%emt 0:02:05]} 12. Bg5 {[%emt 0:18:24]} ({Better is} 12. Kb1 $16) 12... Qa5 {[%emt 0:18:52]} (12... Qxg5 $1 $11 13. Qxg5 Bh6 14. Qxh6 Rxh6) 13. Kb1 $1 $16 {[%emt 0:01:21][%cal Oc3d5]} b4 {[%emt 0:01:33]} 14. Nce2 {[%emt 0:00:07]} c5 {[%emt 0:03:58]} 15. gxh5 {[%emt 0:03:21]} Rxh5 {[%emt 0:02:26]} 16. h4 {[%emt 0:01:45]} Nb6 {[%emt 0:15:07]} (16... c4 $142) 17. Ng3 {[%emt 0:07:44]} (17. Nf4 $142 Rh7 18. h5) 17... Na4 {[%emt 0:15:30]} (17... Rxg5 $16 18. hxg5 Kf8) 18. N1e2 {[%emt 0:02:54]} (18. Nxh5 $18 {and the rest is easy.} gxh5 19. Ne2) 18... Rb8 {[%emt 0:09:35]} (18... Rxg5 $16 19. hxg5 Rb8) 19. b3 {[%emt 0:00:42]} (19. Nxh5 $18 {has better winning chances.} Nc3+ 20. Nxc3 bxc3 21. Nxg7+ Kf8 22. Qc1 (22. Nxe6+ Bxe6 23. Qc1 Rxb2+ 24. Qxb2 cxb2 $16) 22... Rxb2+ 23. Qxb2 $1 cxb2 24. Bf6 Nxf6 25. exf6) 19... Nc3+ {[%emt 0:00:50]} 20. Nxc3 {[%emt 0:00:07]} bxc3 {[%emt 0:00:07]} 21. Qe1 {[%emt 0:03:19]} (21. Qe3 $142) 21... Rh8 {[%emt 0:02:54] [#]} (21... c4 $142) 22. dxc5 $1 {[%emt 0:05:27]} Ne7 {[%emt 0:05:04]} 23. f4 {[%emt 0:03:11]} ({White should play} 23. h5 $18) 23... Bb7 {[%emt 0:02:25]} (23... Bd7 $16 {was necessary.}) 24. Rh3 $18 {[%emt 0:02:33]} d4 $2 {[%emt 0:01:17]} (24... Qxc5 25. Ne2 Nf5) 25. Rxd4 {[%emt 0:00:46]} Nd5 {[%emt 0:00:33]} 26. Ne4 {[%emt 0:02:13]} Bf8 {[%emt 0:01:13]} (26... Bc6 $142 27. Nxc3 Bh6) 27. Nf6+ {[%emt 0:03:08]} Nxf6 {[%emt 0:00:27]} 28. Qxc3 {[%emt 0:00:17][%mdl 64] Overworked Piece} Qxc3 {[%emt 0:00:21]} 29. Bb5+ {[%emt 0:00:09] Weighted Error Value: White=0.32/Black=0.83} 1-0

[Event "Chhattisgarh Masters GM 2022"]
[Site "Chhattisgarh"]
[Date "2022.09.27"]
[Round "9.2"]
[White "Savchenko, Boris"]
[Black "Ajay Karthikeyan"]
[Result "1/2-1/2"]
[ECO "E73"]
[WhiteElo "2547"]
[BlackElo "2422"]
[Annotator "TA"]
[PlyCount "110"]
[EventDate "2022.09.19"]
[EventCountry "IND"]
[SourceTitle "playchess.com"]
[Source "ChessBase"]
[SourceQuality "1"]
[TimeControl "5400+30"]

{[%evp 13,109,43,51,60,61,-13,16,25,26,17,8,0,27,21,69,0,0,0,-4,-58,31,-153,-166,-167,-153,-130,-131,-153,-165,-158,-114,-154,-154,-144,-148,-160,-79,-131,-66,-173,-116,-111,-85,-98,-88,-92,-54,-61,-54,-186,-183,-322,-329,-327,-326,-324,-292,-322,-323,-286,-297,-348,-348,-348,-348,-435,-239,-230,-2,-69,-50,-50,-49,-50,-55,-55,-46,-46,-46,-46,-46,-46,-46,-46,-46,-93,-46,-93,-93,-93,-93,-93,-93,-93,-93,-93,-93,-93]} 1. c4 {[%emt 0:00:05]} Nf6 {[%emt 0:00:37]} 2. d4 {[%emt 0:02:21][%cal Bd2d4,Bd4d5][%mdl 32]} g6 {[%emt 0:00:20]} 3. Nc3 {[%emt 0:03:09]} Bg7 {[%emt 0:00:06]} 4. e4 {[%emt 0:00:17]} d6 {[%emt 0:00:06]} 5. Be2 {[%emt 0:02:18]} O-O {[%emt 0:00:12]} 6. Be3 {[%emt 0:00:09]} e5 {[%emt 0:01:54]} 7. d5 {[%emt 0:00:41]} Na6 {[%emt 0:00:06]} 8. g4 {[%emt 0:00:18] E73: King's Indian: Averbakh Variation without 6...c5.} Nc5 {[%emt 0:00:06]} 9. Bf3 {[%emt 0:10:29]} (9. f3 $1 $14) 9... a5 {[%emt 0:20:05]} (9... c6 $5 {[%cal Rc6d5]}) 10. h4 {[%emt 0:08:31] The position is equal.} c6 {[%emt 0:21:29]} 11. dxc6 {[%emt 0:24:38]} bxc6 {[%emt 0:03:40]} 12. g5 {[%emt 0:02:16]} Nfd7 {[%emt 0:10:57]} 13. Qxd6 {[%emt 0:02:40]} Ne6 {[%emt 0:00:10] [#]} (13... Qb6 $11 {should be considered.}) 14. Qxc6 $146 {[%emt 0:05:31] White is much more active. The black rooks are badly placed.} (14. Nge2 $1 $14) ({Predecessor:} 14. Nge2 c5 15. Bg4 Nd4 16. Bxd4 exd4 17. Nd5 Re8 18. Qc7 d3 19. Qxd8 Rxd8 20. Nec3 {1-0 (34) Korobkov,P (2484)-Spasov,V (2606) Bansko 2010}) 14... Rb8 $11 {[%emt 0:06:07]} 15. Qd6 {[%emt 0:07:39]} Nd4 {[%emt 0:06:22]} 16. Nd5 {[%emt 0:16:18] Prevents Rb6.} (16. Kf1 $11) 16... Re8 {[%emt 0:09:03]} (16... Rxb2 17. Bd1 $11) (16... Nc2+ $15 17. Kd1 Nxa1 18. Ne7+ Kh8) 17. O-O-O $2 {[%emt 0:05:27]} (17. Rb1 $14) 17... Re6 $1 $17 {[%emt 0:01:59]} 18. Qc7 {[%emt 0:03:24]} (18. Qa3 Ba6 19. Be2 Bf8 $11) 18... Qxc7 {[%emt 0:08:56]} 19. Nxc7 {[%emt 0:00:06]} Rc6 {[%emt 0:00:03][%csl LRc4,LRc7]} 20. Nd5 {[%emt 0:00:39]} (20. Bxd4 exd4 21. Ne8 (21. Nd5 $2 Rxc4+ 22. Kb1 d3 $19) 21... Rxc4+ 22. Kb1 Be5) 20... Rxc4+ {[%emt 0:00:26]} 21. Kb1 {[%emt 0:00:05]} Bb7 $1 {[%emt 0:00:23] Strongly threatening ...Bxd5.} 22. Rc1 {[%emt 0:03:31]} Bxd5 {[%emt 0:00:28]} 23. exd5 {[%emt 0:00:04]} Rcb4 {[%emt 0:01:25]} 24. b3 {[%emt 0:00:07]} e4 {[%emt 0:01:50]} (24... a4 $142 $1 {[%cal Ra4b3]} 25. Bd2 R4b5) 25. Bd1 {[%emt 0:01:35]} (25. Bxe4 $2 Nb5 26. Kc2 Rxe4 $19) (25. Bxd4 $142 Rxd4 26. Bg2) 25... a4 {[%emt 0:03:05]} (25... Nb5 $17 {[%cal Rb5a3]} 26. Kc2 Nc3) 26. Bd2 {[%emt 0:00:34]} ({White should play} 26. a3 $1 $15 Rxb3+ 27. Bxb3) 26... R4b7 $40 {[%emt 0:00:28][%mdl 128] Black is out for blood.} (26... R4b5 $19 27. Ne2 axb3 28. axb3 Nxb3 29. Bxb3 Rxb3+ 30. Kc2 Rd3) 27. Rh3 {[%emt 0:00:17]} axb3 {[%emt 0:00:12]} 28. Bxb3 {[%emt 0:00:43]} Ne5 {[%emt 0:02:46] aiming for ...Nd3.} 29. Rhc3 {[%emt 0:00:36]} Nd3 {[%emt 0:00:55][%cal Rd4b3] Pair of Knights!} 30. Rc8+ {[%emt 0:00:15]} Bf8 {[%emt 0:00:03]} 31. Rxb8 {[%emt 0:00:45]} ({White should try} 31. R1c3 $1 $15) 31... Rxb8 $19 {[%emt 0:00:04]} 32. Rc4 {[%emt 0:00:30]} (32. Rf1 {might work better.}) 32... Nxb3 {[%emt 0:01:02]} 33. axb3 {[%emt 0:00:04]} Rxb3+ {[%emt 0:00:09]} 34. Kc2 {[%emt 0:00:03]} Rb2+ {[%emt 0:00:35]} 35. Kd1 {[%emt 0:00:02]} Rb1+ {[%emt 0:01:00]} ({Stronger than} 35... Nxf2+ 36. Ke2 $17) 36. Ke2 {[%emt 0:00:04][%cal Og1f3]} Rxg1 {[%emt 0:00:29]} 37. Rc8 {[%emt 0:02:12]} Rb1 {[%emt 0:00:45]} 38. d6 {[%emt 0:00:05] Intending d7 and mate.} Rb7 {[%emt 0:00:31]} ({Weaker is} 38... Ne5 39. Bc3 Nd7 40. Rc7 $11) 39. Rc7 {[%emt 0:00:49]} Rb8 {[%emt 0:00:26]} (39... Rb5 $142 40. Rc8 Rd5) 40. d7 {[%emt 0:00:08] [#] Rc8 is the strong threat.} Nc5 $2 {[%emt 0:00:36]} (40... Rd8 $1 $19 {White must now prevent ...Nc5.} 41. Ba5 Nf4+ 42. Kf1 Ne6) 41. Ba5 {[%emt 0:00:00]} (41. Be3 $1 $11 Nxd7 42. Rxd7) 41... h6 {[%emt 0:00:00]} 42. Rxc5 {[%emt 0:00:00]} Bxc5 {[%emt 0:00:00]} 43. d8=Q+ {[%emt 0:00:00]} Rxd8 {[%emt 0:00:00]} 44. Bxd8 $15 {[%emt 0:00:00][%mdl 4096] Endgame KB-KB} f5 {[%emt 0:00:00] Threatens to win with ...hxg5.} 45. gxf6 {[%emt 0:00:00]} Kf7 {[%emt 0:00:00]} 46. f3 {[%emt 0:00:00]} exf3+ {[%emt 0:00:00]} 47. Kxf3 {[%emt 0:00:00]} h5 {[%emt 0:00:00]} 48. Kg3 {[%emt 0:00:00]} Bd4 {[%emt 0:00:00]} 49. Kh3 {[%emt 0:00:00] [#]} (49. Bc7 $15) 49... Bxf6 {[%emt 0:00:00]} ({Better is} 49... Ke6 $1 $17 50. f7 Bc5) 50. Bc7 {[%emt 0:00:00]} (50. Bb6 $15 {was preferrable.}) 50... Ke6 $17 {[%emt 0:00:00] Black is better.} 51. Bf4 {[%emt 0:00:00]} Kf5 {[%emt 0:00:00]} 52. Bg3 {[%emt 0:00:00]} Be5 {[%emt 0:00:00] ( -> ...Bxg3)} 53. Bf2 {[%emt 0:00:00]} Ke4 {[%emt 0:00:00]} 54. Be1 {[%emt 0:00:00]} Kf3 {[%emt 0:00:00]} 55. Bg3 {[%emt 0:00:00]} Bxg3 {[%emt 0:00:00] And White is the lucky defender.  Weighted Error Value: White=0.36/Black=0.27 (precise)} 1/2-1/2

[Event "Chhattisgarh Masters GM 2022"]
[Site "Chhattisgarh"]
[Date "2022.09.27"]
[Round "9.2"]
[White "Avinash Ramesh"]
[Black "Paichadze, Luka"]
[Result "1-0"]
[ECO "B13"]
[WhiteElo "2328"]
[BlackElo "2560"]
[Annotator "TA"]
[PlyCount "113"]
[EventDate "2022.09.19"]
[EventCountry "IND"]
[SourceTitle "playchess.com"]
[Source "ChessBase"]
[SourceQuality "1"]
[TimeControl "5400+30"]

{[%evp 24,113,33,20,37,17,37,25,58,0,0,-3,0,0,38,46,33,29,52,21,52,51,35,16,44,0,8,0,52,13,21,16,29,0,10,10,0,0,8,4,4,0,0,0,0,0,0,-49,0,0,0,0,0,-12,-7,-8,0,0,71,76,78,8,65,56,107,29,29,29,29,29,22,29,24,7,279,259,211,272,272,248,5624,5624,5447,4388,1340,8,17,0,759,756,5073,4952]} 1. e4 {[%emt 0:02:13]} c6 {[%emt 0:00:02]} 2. d4 {[%emt 0:00:24]} d5 {[%emt 0:00:05]} 3. exd5 {[%emt 0:00:10]} cxd5 {[%emt 0:00:05]} 4. Bd3 {[%emt 0:00:05]} Nc6 {[%emt 0:00:06]} 5. c3 {[%emt 0:00:05]} Nf6 {[%emt 0:00:20]} 6. Bf4 {[%emt 0:00:07]} Bg4 {[%emt 0:00:24]} 7. Qb3 {[%emt 0:00:08]} Qd7 {[%emt 0:00:17]} 8. Nd2 {[%emt 0:00:22]} e6 {[%emt 0:00:56]} 9. Ngf3 {[%emt 0:00:09]} Bxf3 {[%emt 0:01:57]} 10. Nxf3 {[%emt 0:00:03]} Bd6 {[%emt 0:00:20]} 11. Bxd6 {[%emt 0:00:53]} Qxd6 {[%emt 0:00:03]} 12. O-O {[%emt 0:01:00]} O-O {[%emt 0:01:04]} 13. Rae1 {[%emt 0:01:59]} Nd7 {[%emt 0:09:52] B13: Caro-Kann: Exchange Variation and Panov-Botvinnik Attack.} 14. Qc2 {[%emt 0:02:40]} h6 {[%emt 0:00:19]} 15. Qe2 {[%emt 0:04:39]} Rab8 {[%emt 0:04:21] [#] White has an edge.} 16. Ne5 $146 {[%emt 0:08:24]} (16. Nh4 $14) ({Predecessor:} 16. Bb1 Rfc8 17. Qd3 Nf8 18. Ne5 Nxe5 19. Rxe5 b5 20. f4 b4 21. Re3 Rb7 22. f5 Rbc7 23. fxe6 Nxe6 24. Qh7+ Kf8 25. Qh8+ Ke7 26. Qxg7 Rf8 27. Bf5 {1-0 (27) Barata,A (2217)-De Souza Monteiro,M (2077) Belem 2011}) 16... Ncxe5 $11 {[%emt 0:01:09]} 17. dxe5 {[%emt 0:00:12]} Qc7 {[%emt 0:00:57]} 18. Qh5 {[%emt 0:05:57]} f5 {[%emt 0:06:24]} 19. exf6 {[%emt 0:04:03]} Rxf6 {[%emt 0:00:14]} 20. Qh3 {[%emt 0:05:07]} Nf8 {[%emt 0:18:20]} 21. Qg3 {[%emt 0:01:57]} (21. Qg4 {is interesting.} Qb6 22. Re2 Rc8 23. Rfe1) 21... Rc8 {[%emt 0:07:32]} 22. Qxc7 {[%emt 0:05:22]} Rxc7 {[%emt 0:00:09]} 23. f4 {[%emt 0:04:08]} Nd7 {[%emt 0:05:08]} 24. Re3 {[%emt 0:05:10]} Kf7 {[%emt 0:04:09]} 25. h4 {[%emt 0:02:45]} a6 {[%emt 0:04:10]} (25... e5 $11) 26. g4 {[%emt 0:01:02]} Ke7 $1 {[%emt 0:01:46]} 27. Kg2 {[%emt 0:05:33]} Kd6 {[%emt 0:02:39]} 28. g5 {[%emt 0:06:02]} Rf8 {[%emt 0:01:08]} 29. Kg3 {[%emt 0:01:00]} Nc5 {[%emt 0:08:24]} 30. Bc2 {[%emt 0:01:31]} hxg5 {[%emt 0:00:55]} 31. hxg5 {[%emt 0:00:02]} b5 {[%emt 0:00:34]} 32. Rfe1 {[%emt 0:05:11]} Re7 {[%emt 0:00:57]} 33. R3e2 {[%emt 0:10:37]} Nd7 {[%emt 0:00:54]} 34. Rf2 {[%emt 0:05:43]} a5 {[%emt 0:02:00]} 35. Rd1 {[%emt 0:03:31]} (35. a3 $11) 35... Kc5 {[%emt 0:05:27]} (35... e5 $1 $15 36. f5 e4) 36. Rfd2 {[%emt 0:00:52]} Nb6 {[%emt 0:01:06]} 37. Re2 {[%emt 0:00:25]} Nd7 {[%emt 0:08:03]} 38. Bb3 {[%emt 0:02:33][%cal Od1d5] Black must now prevent Rxd5+!} Kd6 {[%emt 0:03:20]} 39. Bc2 {[%emt 0:05:08]} Nb6 {[%emt 0:03:01]} 40. Bd3 {[%emt 0:00:48]} b4 {[%emt 0:01:00]} (40... Ref7 $11 {remains equal.}) 41. c4 $1 $16 {[%emt 0:01:00]} Rc8 {[%emt 0:00:40] [#]} 42. b3 {[%emt 0:00:00]} (42. cxd5 $1 $16 exd5 43. Rxe7 Kxe7 44. Re1+ Kf7 45. Re5) 42... a4 {[%emt 0:00:00]} ({Black should try} 42... e5 $11) 43. Be4 $36 {[%emt 0:00:00][%mdl 2048] Black is under pressure. White is more active.} Rc5 {[%emt 0:00:00]} ({Better is} 43... e5 $14) 44. Bf3 {[%emt 0:00:00]} (44. Kg4 $16) 44... e5 $11 {[%emt 0:00:00]} 45. Kg4 {[%emt 0:00:00]} exf4 {[%emt 0:00:00]} 46. Rxe7 {[%emt 0:00:00]} Kxe7 {[%emt 0:00:00]} 47. cxd5 {[%emt 0:00:11][%cal Bc4d5,Bd5d6][%mdl 32]} axb3 {[%emt 0:00:37]} 48. axb3 {[%emt 0:00:07][%mdl 4096] Endgame aiming for Rd4. KRB-KRN} Rc3 $2 {[%emt 0:00:25][%mdl 8192]} (48... Kd6 $1 $11) 49. d6+ $18 {[%emt 0:00:18]} Kd8 {[%emt 0:00:25]} 50. Kxf4 {[%emt 0:01:00]} Rxb3 {[%emt 0:00:22]} 51. Bg4 {[%emt 0:01:37] Strongly threatening d7.} Rb2 $2 {[%emt 0:00:52]} (51... Nc8 52. Rd4 Rb1) 52. Rh1 {[%emt 0:01:43][%cal Rh1h8]} Rf2+ {[%emt 0:00:07]} 53. Kg3 {[%emt 0:00:01] Rh8+ would kill now.} Rf8 {[%emt 0:00:11] Prevents Rh8.} 54. Rb1 $2 {[%emt 0:00:21]} (54. Ra1 $18 {Threatening mate with Ra6.} Rf7 55. Ra5) 54... Nc4 $11 {[%emt 0:01:37]} 55. Rd1 {[%emt 0:01:42] Rd4 is the strong threat.} Re8 $2 {[%emt 0:01:48][%mdl 8192]} (55... Ne3 $11 56. Rb1 Nf5+ 57. Kg2 Ne3+ 58. Kg3 Nf5+ 59. Bxf5 Rxf5 60. Rxb4 Rxg5+ 61. Kf4 Rd5) 56. d7 $18 {[%emt 0:01:29]} Rf8 {[%emt 0:00:48] [#]} 57. Rc1 $1 {[%emt 0:00:09] Weighted Error Value: White=0.31/Black=0.28 (precise)} 1-0